bitfinex/quotes_SOLUSD_20241209
["timestamp","ask_amount","ask_price","bid_price","bid_amount"]
[1733755000036,1.5489,229.55,229.43,20.208914]
[1733755000357,1.5489,229.55,229.45,0.37647]
[1733755000927,1.5489,229.55,229.47,0.37647]
[1733755001844,1.5489,229.55,229.46,23.776884]
[1733755002166,1.5489,229.55,229.45,0.12549]
[1733755003244,1.5489,229.55,229.45,0.37647]
[1733755003561,1.5489,229.55,229.44,23.776884]
[1733755003782,1.5489,229.55,229.42,0.12549]
[1733755004058,1.5489,229.55,229.42,0.37647]
[1733755004264,20.37647,229.54,229.37,20.083424]
[1733755004644,20.0,229.54,229.4,0.25098]
[1733755004957,20.0,229.54,229.4,0.12549]
[1733755005848,20.0,229.54,229.41,0.12549]
[1733755006156,20.0,229.54,229.43,0.12549]
[1733755006335,1.5489,229.55,229.43,0.12549]
[1733755007061,1.5489,229.55,229.44,0.12549]
[1733755007241,1.5489,229.55,229.45,0.12549]
[1733755007566,1.5489,229.55,229.39,20.083424]
[1733755007743,1.5489,229.55,229.37,20.73699199]
[1733755007944,1.5489,229.55,229.38,0.12549]
[1733755008366,0.12549,229.53,229.35,20.083424]
[1733755009255,0.12549,229.53,229.36,0.25098]
[1733755009462,21.5489,229.55,229.4,0.25098]
[1733755009666,21.5489,229.55,229.4,24.027864]
[1733755010161,21.5489,229.55,229.41,0.12549]
[1733755010364,1.5489,229.55,229.44,23.776884]
[1733755010555,1.5489,229.55,229.47,0.25098]
[1733755012672,1.5489,229.55,229.48,0.25098]
[1733755012967,0.5252676,229.56,229.49,0.12549]
[1733755014081,20.5252676,229.56,229.47,0.12549]
[1733755014656,20.5252676,229.56,229.47,0.37647]
[1733755016778,20.5252676,229.56,229.47,0.25098]
[1733755017743,20.5252676,229.56,229.41,12.54786496]
[1733755018344,0.12549,229.55,229.41,12.54786496]
[1733755018767,0.12549,229.55,229.4,0.25098]
[1733755018979,1.5878,229.54,229.4,0.25098]
[1733755019469,1.5878,229.54,229.37,12.54786496]
[1733755019470,1.5878,229.54,229.38,24.027864]
[1733755019773,21.5878,229.54,229.38,23.902374]
[1733755020339,0.12549,229.53,229.36,23.776884]
[1733755020573,6.16,229.52,229.35,12.54786496]
[1733755020747,20.0,229.49,229.33,12.54786496]
[1733755021251,20.0,229.49,229.34,0.25098]
[1733755022072,20.0,229.49,229.35,0.12549]
[1733755022253,20.0,229.49,229.34,23.902374]
[1733755022453,20.0,229.49,229.28,8.47842303]
[1733755022454,1.5733,229.48,229.32,23.776884]
[1733755023186,0.37647,229.47,229.29,12.54786496]
[1733755023468,20.0,229.43,229.27,12.54786496]
[1733755023974,20.0,229.43,229.28,0.65400786]
[1733755024345,20.0,229.43,229.32,0.25098]
[1733755024766,20.0,229.43,229.3,23.776884]
[1733755024969,0.12549,229.42,229.27,12.54786496]
[1733755025181,0.12549,229.4,229.23,13.20197278]
[1733755025385,20.0,229.36,229.21,12.54786496]
[1733755025875,20.0,229.36,229.23,12.54786496]
[1733755026043,20.0,229.36,229.26,0.12549]
[1733755026243,20.0,229.36,229.28,0.25098]
[1733755026840,6.3144,229.39,229.32,0.25098]
[1733755027101,1.6373,229.42,229.32,0.25098]
[1733755027309,1.6373,229.42,229.33,12.67335496]
[1733755027595,1.6373,229.42,229.34,24.027864]
[1733755027979,1.6373,229.42,229.35,0.12549]
[1733755028571,1.6373,229.42,229.36,24.027864]
[1733755028894,20.0,229.41,229.36,23.776884]
[1733755029396,1.6373,229.42,229.36,0.25098]
[1733755029707,1.6373,229.42,229.36,24.027864]
[1733755029910,20.0,229.47,229.38,24.027864]
[1733755030205,1.6106,229.48,229.4,0.25098]
[1733755030373,1.6106,229.48,229.4,24.027864]
[1733755031174,6.073,229.5,229.43,0.12549]
[1733755031387,1.5025,229.53,229.43,0.12549]
[1733755032977,1.5025,229.53,229.45,0.12549]
[1733755033174,0.5252676,229.56,229.47,0.12549]
[1733755034076,0.5252676,229.56,229.46,24.027864]
[1733755034273,0.5252676,229.56,229.41,12.54786496]
[1733755034711,0.5252676,229.56,229.41,0.25098]
[1733755035314,0.5252676,229.56,229.4,0.25098]
[1733755035515,0.5252676,229.56,229.41,0.12549]
[1733755035724,20.0,229.51,229.35,12.54786496]
[1733755036084,0.12549,229.5,229.33,12.54786496]
[1733755036315,0.12549,229.48,229.31,12.54786496]
[1733755036617,20.0,229.44,229.31,12.54786496]
[1733755037292,20.0,229.44,229.27,0.65390289]
[1733755037293,20.0,229.44,229.33,12.79884496]
[1733755037619,20.0,229.44,229.33,0.25098]
[1733755037790,20.0,229.44,229.34,0.12549]
[1733755037995,20.0,229.44,229.35,0.25098]
[1733755038521,20.0,229.44,229.29,0.12549]
[1733755038809,20.0,229.44,229.26,12.54786496]
[1733755039226,20.0,229.44,229.27,0.25098]
[1733755039521,20.0,229.44,229.29,0.25098]
[1733755040091,20.0,229.44,229.29,0.12549]
[1733755041290,1.5392,229.43,229.24,12.54786496]
[1733755041501,0.37647,229.42,229.24,12.54786496]
[1733755041694,20.0,229.38,229.22,12.54786496]
[1733755041903,20.0,229.38,229.24,12.79884496]
[1733755042208,20.0,229.38,229.24,12.54786496]
[1733755042402,20.0,229.38,229.27,0.25098]
[1733755042611,20.0,229.38,229.27,0.90497925]
[1733755042793,20.0,229.38,229.3,0.12549]
[1733755042987,6.1953,229.41,229.3,0.12549]
[1733755044008,6.1953,229.41,229.29,24.027864]
[1733755044213,6.1953,229.41,229.24,12.54786496]
[1733755044214,20.0,229.38,229.24,12.54786496]
[1733755044711,20.0,229.38,229.27,0.25098]
[1733755044889,20.0,229.38,229.29,0.25098]
[1733755045221,20.0,229.38,229.31,0.25098]
[1733755045514,20.0,229.38,229.31,24.027864]
[1733755045882,20.0,229.38,229.3,0.12549]
[1733755046082,20.0,229.38,229.29,23.776884]
[1733755046318,20.0,229.38,229.25,12.54786496]
[1733755046690,20.0,229.38,229.26,0.12549]
[1733755047514,20.0,229.38,229.28,0.25098]
[1733755047883,20.0,229.38,229.26,23.776884]
[1733755048090,20.0,229.38,229.25,0.12549]
[1733755048289,20.0,229.38,229.25,12.92433496]
[1733755048531,20.0,229.38,229.27,0.25098]
[1733755049129,20.0,229.38,229.24,23.776884]
[1733755049484,20.0,229.38,229.2,0.65408131]
[1733755049485,20.0,229.38,229.23,12.54786496]
[1733755049812,20.0,229.38,229.24,24.027864]
[1733755050891,6.1953,229.41,229.28,0.25098]
[1733755051091,6.1953,229.41,229.28,23.776884]
[1733755051290,6.1953,229.41,229.29,0.25098]
[1733755052213,20.0,229.38,229.29,0.25098]
[1733755052621,20.0,229.38,229.28,23.776884]
[1733755052824,20.0,229.38,229.26,23.776884]
[1733755053030,1.603,229.37,229.24,23.902374]
[1733755053359,1.603,229.37,229.25,0.25098]
[1733755055194,1.603,229.37,229.24,23.902374]
[1733755055419,0.37647,229.36,229.2,23.776884]
[1733755055719,0.37647,229.36,229.19,12.54786496]
[1733755056022,21.603,229.37,229.19,12.54786496]
[1733755056234,21.603,229.37,229.2,0.25098]
[1733755056816,21.603,229.37,229.21,0.12549]
[1733755057822,21.603,229.37,229.23,0.12549]
[1733755058028,1.603,229.37,229.25,0.12549]
[1733755058209,1.603,229.37,229.28,0.25098]
[1733755058414,1.603,229.37,229.31,0.12549]
[1733755058932,1.5295,229.54,229.32,0.25098]
[1733755059099,139.1295,229.54,229.36,0.25098]
[1733755059304,139.1295,229.54,229.37,0.12549]
[1733755059305,1.5295,229.54,229.37,0.12549]
[1733755060853,20.0,229.52,229.37,0.12549]
[1733755061906,26.5401,229.52,229.37,0.12549]
[1733755062122,26.5401,229.52,229.39,0.12549]
[1733755062123,6.5401,229.52,229.39,0.12549]
[1733755062323,6.5401,229.52,229.41,23.776884]
[1733755062523,6.5401,229.52,229.42,0.25098]
[1733755063831,20.0,229.49,229.41,0.12549]
[1733755064011,20.0,229.49,229.4,24.027864]
[1733755066232,1.5295,229.54,229.42,24.027864]
[1733755067129,1.5295,229.54,229.43,0.12549]
[1733755067328,1.5295,229.54,229.45,0.12549]
[1733755068047,1.5295,229.54,229.44,24.027864]
[1733755068247,1.5295,229.54,229.45,0.12549]
[1733755068825,1.5295,229.54,229.44,24.027864]
[1733755069028,0.5252676,229.56,229.47,0.37647]
[1733755069029,20.0,229.55,229.47,0.37647]
[1733755069246,0.5252676,229.56,229.49,0.25098]
[1733755070536,0.5252676,229.56,229.48,23.776884]
[1733755071319,0.5252676,229.56,229.37,2.23226533]
[1733755071320,0.5252676,229.56,229.39,18.96326496]
[1733755071761,0.5252676,229.56,229.4,0.25098]
[1733755071941,0.5252676,229.56,229.39,18.96326496]
[1733755072133,20.5252676,229.56,229.39,6.4154]
[1733755072855,20.5252676,229.56,229.4,24.153354]
[1733755073061,0.5252676,229.56,229.43,0.12549]
[1733755073430,0.5252676,229.56,229.42,24.68141877]
[1733755073431,0.5252676,229.56,229.47,0.12549]
[1733755074741,0.5252676,229.56,229.44,23.776884]
[1733755074962,0.5252676,229.56,229.45,0.12549]
[1733755075454,0.5252676,229.56,229.44,23.776884]
[1733755075629,0.5252676,229.56,229.45,0.25098]
[1733755076730,0.5252676,229.56,229.46,23.902374]
[1733755076936,0.5252676,229.56,229.48,0.12549]
[1733755077169,0.5252676,229.56,229.49,0.25098]
[1733755079356,0.5252676,229.56,229.5,0.12549]
[1733755079865,0.5252676,229.56,229.52,0.12549]
[1733755081167,0.5252676,229.56,229.51,23.776884]
[1733755082272,0.5252676,229.56,229.52,24.153354]
[1733755082641,0.5252676,229.56,229.52,24.80667763]
[1733755083769,0.5252676,229.56,229.52,0.37647]
[1733755084269,0.5252676,229.56,229.5,23.776884]
[1733755084270,0.5252676,229.56,229.48,23.776884]
[1733755084866,0.5252676,229.56,229.49,0.25098]
[1733755085235,0.5252676,229.56,229.49,0.12549]
[1733755085676,0.5252676,229.56,229.47,0.12549]
[1733755086040,0.5252676,229.56,229.46,23.776884]
[1733755086664,0.5252676,229.56,229.45,6.1747]
[1733755086869,0.5252676,229.56,229.38,0.65355618]
[1733755086870,1.5947,229.55,229.4,6.1278]
[1733755087042,20.0,229.54,229.4,6.1278]
[1733755087560,20.0,229.54,229.38,0.65355618]
[1733755087875,20.0,229.54,229.39,12.79884496]
[1733755088043,20.0,229.54,229.39,0.25098]
[1733755088471,20.0,229.54,229.36,12.54786496]
[1733755088682,1.5947,229.55,229.36,12.54786496]
[1733755088683,20.0,229.53,229.36,12.54786496]
[1733755088977,20.0,229.53,229.36,12.79884496]
[1733755089165,0.5252676,229.56,229.47,6.76228]
[1733755089368,0.5252676,229.56,229.53,0.25098]
[1733755089685,1.5503,229.67,229.53,0.90422043]
[1733755089977,1.5503,229.67,229.54,0.12549]
[1733755090185,1.5503,229.67,229.53,0.25098]
[1733755090351,0.25098,229.66,229.49,0.12549]
[1733755090555,0.25098,229.66,229.47,19.05916496]
[1733755090556,0.25098,229.66,229.48,0.12549]
[1733755090755,20.0,229.61,229.48,0.37647]
[1733755091061,20.0,229.61,229.5,0.25098]
[1733755091380,20.0,229.61,229.48,0.37647]
[1733755091555,20.0,229.61,229.48,24.153354]
[1733755092371,6.627,229.64,229.51,0.12549]
[1733755092863,6.627,229.64,229.52,24.027864]
[1733755093058,6.627,229.64,229.53,0.12549]
[1733755093785,1.5503,229.67,229.53,0.12549]
[1733755094084,1.5503,229.67,229.54,24.027864]
[1733755094252,1.5503,229.67,229.55,0.12549]
[1733755095155,20.0,229.66,229.53,0.12549]
[1733755095348,20.0,229.66,229.55,0.37647]
[1733755095555,1.5503,229.67,229.55,0.37647]
[1733755096279,1.5503,229.67,229.56,23.776884]
[1733755096656,20.0,229.66,229.56,23.776884]
[1733755096888,20.0,229.66,229.55,0.12549]
[1733755098587,20.0,229.66,229.59,0.12549]
[1733755100752,20.0,229.66,229.57,23.776884]
[1733755100956,20.0,229.66,229.56,23.776884]
[1733755101393,20.0,229.66,229.52,0.65325896]
[1733755101772,20.0,229.66,229.51,12.54786496]
[1733755101989,20.0,229.66,229.52,0.65330943]
[1733755102206,20.0,229.66,229.53,0.25098]
[1733755103196,20.0,229.66,229.49,12.54786496]
[1733755103409,20.0,229.66,229.48,0.65331999]
[1733755103975,20.0,229.66,229.49,12.79884496]
[1733755104181,20.0,229.66,229.51,0.25098]
[1733755104590,20.0,229.66,229.52,0.12549]
[1733755104887,20.0,229.66,229.5,0.12549]
[1733755105082,20.0,229.66,229.48,12.54786496]
[1733755105083,20.0,229.66,229.48,0.37647]
[1733755105808,1.5503,229.67,229.53,0.37647]
[1733755105981,1.5503,229.67,229.55,24.153354]
[1733755106184,1.5503,229.67,229.55,0.37647]
[1733755106685,1.5503,229.67,229.54,0.12549]
[1733755106887,1.5503,229.67,229.5,0.12549]
[1733755107274,1.5503,229.67,229.51,23.776884]
[1733755107681,20.0,229.66,229.51,23.776884]
[1733755109309,20.0,229.66,229.5,0.37647]
[1733755110692,20.0,229.66,229.52,24.153354]
[1733755111604,0.37647,229.65,229.51,0.65343005]
[1733755111790,0.37647,229.65,229.47,6.5113]
[1733755111791,20.37647,229.65,229.47,6.5113]
[1733755111998,20.37647,229.65,229.48,0.25098]
[1733755112198,20.0,229.65,229.5,12.79884496]
[1733755112388,1.5503,229.67,229.52,12.79884496]
[1733755112581,1.5503,229.67,229.54,0.25098]
[1733755112782,1.5503,229.67,229.56,24.027864]
[1733755112977,1.5503,229.67,229.58,0.25098]
[1733755113284,1.5503,229.67,229.59,0.12549]
[1733755113504,1.5503,229.67,229.58,24.027864]
[1733755114402,20.0,229.66,229.58,24.027864]
[1733755114605,20.0,229.66,229.58,23.776884]
[1733755122330,20.0,229.66,229.59,24.153354]
[1733755122613,137.6,229.75,229.59,24.80654969]
[1733755122614,1.6158,229.71,229.59,24.80654969]
[1733755123525,6.5378546,229.79,229.59,24.80654969]
[1733755123694,1.6158,229.77,229.59,24.80654969]
[1733755125108,20.0,229.76,229.59,24.80654969]
[1733755125590,1.6158,229.77,229.62,0.12549]
[1733755125791,1.6158,229.77,229.64,0.12549]
[1733755126130,1.6158,229.77,229.66,0.12549]
[1733755126312,1.6158,229.77,229.68,0.12549]
[1733755127408,6.5378546,229.79,229.68,0.12549]
[1733755127802,20.0,229.76,229.68,0.12549]
[1733755129796,20.0,229.76,229.67,23.776884]
[1733755130495,20.0,229.76,229.64,0.12549]
[1733755131111,20.0,229.76,229.64,0.25098]
[1733755131810,20.0,229.76,229.65,0.12549]
[1733755137746,20.0,229.76,229.63,23.776884]
[1733755137954,20.0,229.76,229.52,10.0]
[1733755137955,20.0,229.76,229.58,19.73614106]
[1733755138518,20.0,229.76,229.58,7.1882761]
[1733755139445,20.0,229.76,229.59,0.25098]
[1733755139653,20.0,229.75,229.59,0.25098]
[1733755139874,0.37647,229.74,229.58,6.5352]
[1733755140063,20.0,229.7,229.58,6.5352]
[1733755140566,20.0,229.7,229.54,12.54786496]
[1733755141136,20.0,229.7,229.54,13.20109794]
[1733755141336,20.0,229.7,229.55,0.25098]
[1733755141541,20.0,229.7,229.57,0.25098]
[1733755141775,20.0,229.7,229.58,0.12549]
[1733755142080,7.7041,229.73,229.6,0.12549]
[1733755142260,7.7041,229.73,229.59,23.776884]
[1733755142455,0.25098,229.72,229.55,0.12549]
[1733755142842,0.25098,229.72,229.54,0.12549]
[1733755143038,145.3041,229.73,229.54,13.32661541]
[1733755143257,20.0,229.7,229.56,0.12549]
[1733755143489,20.0,229.7,229.57,0.25098]
[1733755143656,7.7041,229.73,229.59,24.027864]
[1733755143863,7.7041,229.73,229.6,0.12549]
[1733755144775,7.7041,229.73,229.62,0.12549]
[1733755144949,1.5688,229.73,229.64,0.12549]
[1733755145147,8.1711,229.78,229.66,0.12549]
[1733755145454,1.5191,229.78,229.66,0.12549]
[1733755146165,1.5191,229.78,229.65,23.776884]
[1733755146356,1.5191,229.78,229.66,0.12549]
[1733755146847,1.5191,229.78,229.66,0.37647]
[1733755147176,20.0,229.76,229.66,0.37647]
[1733755149452,20.0,229.76,229.68,24.153354]
[1733755150155,6.5378546,229.79,229.71,0.12549]
[1733755150473,6.5378546,229.79,229.73,0.12549]
[1733755151758,6.5378546,229.79,229.76,0.12549]
[1733755153878,1.5279,229.95,229.78,36.70121896]
[1733755154043,1.5279,229.95,229.84,0.12549]
[1733755154584,1.5279,229.95,229.86,0.12549]
[1733755156949,1.5279,229.95,229.87,0.25098]
[1733755157161,1.741378,229.99,229.87,0.25098]
[1733755157378,21.741378,229.99,229.87,0.25098]
[1733755158879,21.741378,229.99,229.88,0.12549]
[1733755159062,1.5243,230.0,229.88,0.12549]
[1733755159261,1.5243,230.0,229.9,0.12549]
[1733755160091,0.5252676,230.02,229.92,0.12549]
[1733755160466,0.5252676,230.02,229.94,0.12549]
[1733755161251,0.5252676,230.02,229.96,0.12549]
[1733755161475,0.5252676,230.02,229.99,36.45023896]
[1733755161673,0.5252676,230.02,230.01,23.902374]
[1733755161976,0.5252676,230.02,230.01,24.153354]
[1733755163197,0.5252676,230.02,230.01,36.70121896]
[1733755163974,1.5859,230.18,230.02,23.902374]
[1733755164170,21.5859,230.18,230.02,24.55418419]
[1733755165292,21.5859,230.18,230.04,0.12549]
[1733755165501,1.5859,230.18,230.06,0.12549]
[1733755165678,1.7797733,230.24,230.06,0.12549]
[1733755165679,1.7797733,230.24,230.08,0.25098]
[1733755166028,2.1513676,230.25,230.09,0.12549]
[1733755166493,3.94492116,230.25,230.09,0.12549]
[1733755167094,10.51422116,230.25,230.09,0.12549]
[1733755167403,3.94492116,230.25,230.09,0.12549]
[1733755167896,2.1513676,230.25,230.09,0.12549]
[1733755168475,22.1513676,230.25,230.09,0.12549]
[1733755169206,22.1513676,230.25,230.11,23.902374]
[1733755169207,20.0,230.24,230.11,23.902374]
[1733755169380,2.1513676,230.25,230.13,0.12549]
[1733755169786,0.5252676,230.25,230.15,0.12549]
[1733755170307,0.5252676,230.25,230.18,0.25098]
[1733755170520,0.5252676,230.25,230.19,0.25098]
[1733755170813,0.5252676,230.25,230.22,0.12549]
[1733755171373,0.5252676,230.25,230.21,0.12549]
[1733755172383,0.5252676,230.25,230.21,0.25098]
[1733755172703,0.5252676,230.25,230.2,23.902374]
[1733755173417,0.5252676,230.25,230.2,23.776884]
[1733755173723,0.5252676,230.25,230.14,0.12549]
[1733755174011,0.5252676,230.25,230.13,6.4258]
[1733755174192,0.5252676,230.25,230.14,0.12549]
[1733755174379,0.5252676,230.25,230.13,6.4258]
[1733755174380,2.0276676,230.25,230.13,6.4258]
[1733755174574,2.0276676,230.25,230.07,6.6544]
[1733755175008,22.0276676,230.25,230.07,6.6544]
[1733755175308,7.65315282,230.02,229.98,15.8702]
[1733755175487,7.65315282,230.02,230.01,12.54786496]
[1733755175689,7.65315282,230.02,230.01,13.1996244]
[1733755176416,0.65170222,230.22,230.04,12.54786496]
[1733755176573,0.65170222,230.22,230.01,20.65175944]
[1733755176574,0.65170222,230.22,230.06,12.67335496]
[1733755176775,20.0,230.23,230.08,12.67335496]
[1733755177006,20.0,230.23,230.1,0.12549]
[1733755177395,20.0,230.23,230.1,0.25098]
[1733755177615,2.67936982,230.25,230.1,0.25098]
[1733755177616,0.65170222,230.22,230.11,0.12549]
[1733755177814,0.65170222,230.24,230.11,0.12549]
[1733755178424,0.65170222,230.24,230.1,0.12549]
[1733755178594,0.65170222,230.24,230.06,6.37459]
[1733755178595,0.65170222,230.24,230.06,6.2491]
[1733755178795,20.0,230.23,230.07,0.25098]
[1733755179011,0.65170222,230.22,230.07,0.25098]
[1733755179405,20.0,230.23,230.07,0.25098]
[1733755179605,0.65170222,230.22,230.07,0.25098]
[1733755179823,2.67936982,230.25,230.1,0.12549]
[1733755180122,2.0276676,230.25,230.12,0.12549]
[1733755180296,2.0276676,230.25,230.14,0.12549]
[1733755181693,0.5252676,230.25,230.16,0.12549]
[1733755181911,0.5252676,230.25,230.2,0.12549]
[1733755182240,0.5252676,230.25,230.19,0.25098]
[1733755182524,0.5252676,230.25,230.18,23.776884]
[1733755183724,0.5252676,230.25,230.19,0.37647]
[1733755183933,0.5252676,230.25,230.18,23.776884]
[1733755188903,0.5252676,230.25,230.19,0.12549]
[1733755189235,0.5252676,230.25,230.18,23.776884]
[1733755191134,0.5252676,230.25,230.16,24.027864]
[1733755191325,0.5252676,230.25,230.17,0.12549]
[1733755194148,0.5252676,230.25,230.19,24.153354]
[1733755194332,0.5252676,230.25,230.21,23.902374]
[1733755194899,0.5252676,230.25,230.21,23.776884]
[1733755197400,0.5252676,230.25,230.13,0.65144965]
[1733755197634,0.5252676,230.25,230.1,1.5736]
[1733755197635,0.5252676,230.25,230.11,0.65153329]
[1733755197827,0.5252676,230.25,230.13,0.12549]
[1733755198232,0.5252676,230.25,230.13,0.77701921]
[1733755198442,0.5252676,230.25,230.14,0.12549]
[1733755198934,0.5252676,230.25,230.16,0.12549]
[1733755199233,0.5252676,230.25,230.16,0.25098]
[1733755200432,0.5252676,230.25,230.17,0.90244682]
[1733755200636,0.5252676,230.25,230.19,0.25098]
[1733755201204,0.5252676,230.25,230.21,0.12549]
[1733755202308,0.5252676,230.25,230.21,0.25098]
[1733755202750,0.5252676,230.25,230.21,0.12549]
[1733755203211,0.5252676,230.25,230.21,0.25098]
[1733755203408,20.65170222,230.36,230.23,0.25098]
[1733755203927,20.65170222,230.36,230.18,0.77679789]
[1733755204214,20.65170222,230.36,230.19,0.25098]
[1733755204414,20.65170222,230.36,230.17,12.54786496]
[1733755204415,20.65170222,230.36,230.21,0.37647]
[1733755205437,20.65170222,230.36,230.19,23.776884]
[1733755205812,20.65170222,230.36,230.2,0.12549]
[1733755206926,20.65170222,230.36,230.2,0.25098]
[1733755208343,20.65170222,230.36,230.22,23.902374]
[1733755209449,2.16690222,230.37,230.26,0.12549]
[1733755209646,1.5152,230.37,230.26,24.153354]
[1733755209857,1.5152,230.37,230.28,23.776884]
[1733755210014,0.65170222,230.36,230.28,23.776884]
[1733755210919,20.65170222,230.36,230.28,23.776884]
[1733755220164,0.65170222,230.35,230.28,23.776884]
[1733755220631,0.65170222,230.35,230.17,6.0605]
[1733755221232,20.25098,230.34,230.11,6.2909]
[1733755221456,1.6249,230.32,230.12,0.25098]
[1733755221730,0.65170222,230.31,230.12,0.25098]
[1733755221931,0.65170222,230.31,230.11,6.2909]
[1733755222163,0.65170222,230.31,230.12,0.65154323]
[1733755222576,0.65170222,230.31,230.13,0.25098]
[1733755223076,0.65170222,230.31,230.14,0.77701878]
[1733755223373,0.65170222,230.31,230.15,23.776884]
[1733755224250,20.0,230.27,230.11,6.2909]
[1733755224447,0.65170222,230.26,230.11,6.2909]
[1733755224865,21.5506,230.25,230.05,6.3575]
[1733755225065,0.65170222,230.24,230.06,14.25860534]
[1733755225273,0.65170222,230.24,230.09,0.12549]
[1733755225597,1.5506,230.25,230.11,0.12549]
[1733755225876,2.20230222,230.25,230.12,0.12549]
[1733755226173,2.20230222,230.25,230.14,23.776884]
[1733755226367,2.20230222,230.25,230.12,23.902374]
[1733755226579,2.20230222,230.25,230.13,0.12549]
[1733755227885,1.5506,230.25,230.15,0.12549]
[1733755228062,0.65170222,230.24,230.14,23.776884]
[1733755228252,1.5506,230.25,230.14,23.776884]
[1733755228459,1.5506,230.25,230.16,23.776884]
[1733755228659,1.5506,230.25,230.14,23.776884]
[1733755228988,2.20230222,230.25,230.14,23.776884]
[1733755229287,2.20230222,230.25,230.13,24.153354]
[1733755229780,2.20230222,230.25,230.09,0.77705902]
[1733755230284,2.20230222,230.25,230.11,0.12549]
[1733755231086,2.20230222,230.25,230.12,0.6516747]
[1733755231461,2.20230222,230.25,230.13,0.12549]
[1733755231758,2.20230222,230.25,230.13,23.902374]
[1733755232366,2.20230222,230.25,230.1,14.25864199]
[1733755233000,2.20230222,230.25,230.11,0.25098]
[1733755233168,2.20230222,230.25,230.12,14.25860064]
[1733755233575,2.20230222,230.25,230.13,23.902374]
[1733755233983,2.20230222,230.25,230.13,23.776884]
[1733755234295,2.20230222,230.25,230.06,0.65160694]
[1733755234296,2.20230222,230.25,230.06,14.25864007]
[1733755234593,22.20230222,230.25,230.07,0.12549]
[1733755234795,22.20230222,230.25,230.08,0.65173324]
[1733755235285,22.20230222,230.25,230.06,13.60701962]
[1733755236196,22.20230222,230.25,230.07,0.77721563]
[1733755236489,22.20230222,230.25,230.08,23.902374]
[1733755238795,22.20230222,230.25,230.08,23.776884]
[1733755238975,20.0,230.21,230.07,23.776884]
[1733755239177,1.6542,230.19,230.07,23.776884]
[1733755239375,0.65170222,230.18,230.07,23.776884]
[1733755239767,20.0,230.13,229.95,13.60701962]
[1733755239966,0.65170222,230.12,229.95,13.60701962]
[1733755240675,1.5838,230.11,229.95,13.60701962]
[1733755240906,0.65170222,230.1,229.95,13.60701962]
[1733755241206,0.65170222,230.1,229.96,23.902374]
[1733755241511,0.65170222,230.1,229.97,0.12549]
[1733755242004,20.0,230.06,229.86,10.8759]
[1733755242195,1.5309,230.04,229.89,13.60701962]
[1733755242393,0.65170222,230.03,229.91,0.25098]
[1733755242787,0.65170222,230.03,229.9,0.65218238]
[1733755244196,0.65170222,230.03,229.91,23.902374]
[1733755244503,0.65170222,230.03,229.89,13.60701962]
[1733755244797,0.65170222,230.03,229.87,14.25920434]
[1733755245414,6.6291,230.02,229.87,14.25920434]
[1733755245587,0.65170222,230.01,229.88,0.25098]
[1733755246311,0.65170222,230.01,229.89,13.60701962]
[1733755246514,6.6291,230.02,229.91,0.12549]
[1733755246682,6.6291,230.02,229.93,0.12549]
[1733755246882,6.6291,230.02,229.94,23.776884]
[1733755247284,1.5309,230.04,229.97,0.37647]
[1733755247493,1.5309,230.04,229.98,23.776884]
[1733755247790,1.5309,230.04,230.0,23.776884]
[1733755248586,6.6489,230.12,230.02,23.776884]
[1733755248587,1.5071,230.11,230.02,23.776884]
[1733755249075,1.5071,230.11,230.04,23.776884]
[1733755249280,1.5071,230.11,230.07,0.12549]
[1733755249709,1.5071,230.11,230.07,0.77723931]
[1733755249908,1.5071,230.11,230.08,23.776884]
[1733755251403,20.0,230.15,230.1,23.776884]
[1733755251926,20.0,230.15,230.08,23.776884]
[1733755252087,0.65170222,230.14,229.99,0.65184938]